bitfinex/quotes_SOLUSD_20240816
["timestamp","ask_amount","ask_price","bid_price","bid_amount"]
[1723822740684,23.0015,137.76,137.62,7.2663]
[1723822740876,23.0015,137.76,137.61,7.2667]
[1723822741190,23.0015,137.76,137.61,25.4338]
[1723822741574,23.0015,137.76,137.62,45.50196]
[1723822741787,23.0015,137.76,137.64,0.12549]
[1723822742176,20.0,137.75,137.64,0.12549]
[1723822742494,20.0,137.75,137.63,0.12549]
[1723822742979,20.0,137.75,137.62,0.12549]
[1723822743305,20.0,137.75,137.61,45.0]
[1723822743462,30.0,137.71,137.6,45.12549]
[1723822743659,20.0,137.7,137.61,0.12549]
[1723822744192,20.0,137.7,137.55,665.6443]
[1723822744193,6.1119,137.69,137.55,665.6443]
[1723822744393,6.1119,137.69,137.56,7.2695]
[1723822744594,24.4803,137.68,137.55,647.46105414]
[1723822744771,20.0,137.67,137.55,640.2]
[1723822746005,20.0,137.67,137.5,21.92]
[1723822746006,20.0,137.67,137.5,16.7264]
[1723822746504,30.0,137.66,137.51,7.2717]
[1723822746725,20.0,137.65,137.51,7.2717]
[1723822746992,24.4803,137.68,137.53,40.0971]
[1723822747165,20.0,137.67,137.53,18.1771]
[1723822747362,20.0,137.67,137.53,25.4601]
[1723822747595,20.0,137.67,137.55,7.2696]
[1723822748098,24.4803,137.68,137.58,0.12549]
[1723822748271,24.4803,137.68,137.57,45.25098]
[1723822748471,24.4803,137.68,137.59,0.12549]
[1723822748666,24.4803,137.68,137.59,45.25098]
[1723822749016,24.4803,137.68,137.59,0.12549]
[1723822749181,24.4803,137.68,137.52,18.1786]
[1723822749372,24.4803,137.68,137.49,53.31]
[1723822749373,24.4803,137.68,137.5,16.71690219]
[1723822749571,65.0,137.67,137.5,16.71690219]
[1723822749787,6.1119,137.66,137.47,32.4732]
[1723822749970,30.0,137.64,137.48,7.2737]
[1723822750169,20.0,137.63,137.48,7.2737]
[1723822750611,20.0,137.63,137.47,25.199]
[1723822750771,24.511,137.62,137.47,25.199]
[1723822751097,20.0,137.61,137.47,25.199]
[1723822751476,20.0,137.61,137.47,32.4728]
[1723822751682,20.0,137.61,137.48,7.2737]
[1723822751869,20.0,137.61,137.47,32.4732]
[1723822752064,20.0,137.61,137.48,20.0]
[1723822752265,20.0,137.61,137.48,27.2736]
[1723822752471,20.0,137.61,137.49,7.2731]
[1723822753893,20.0,137.61,137.48,38.1836]
[1723822754282,6.092,137.6,137.48,20.0]
[1723822754603,6.092,137.6,137.47,20.0]
[1723822754998,6.092,137.6,137.45,18.1881]
[1723822755296,20.0,137.59,137.46,20.0]
[1723822755506,20.0,137.59,137.45,25.4633]
[1723822755670,20.0,137.59,137.45,18.1881]
[1723822756105,20.0,137.59,137.45,25.4632]
[1723822756310,20.0,137.59,137.46,7.2747]
[1723822756489,20.0,137.59,137.47,21.92]
[1723822757183,20.0,137.59,137.48,0.50196]
[1723822757384,20.0,137.59,137.48,7.77546]
[1723822757584,20.0,137.59,137.49,45.0]
[1723822757815,20.0,137.59,137.48,45.37647]
[1723822758016,20.0,137.59,137.48,0.37647]
[1723822758413,20.0,137.59,137.46,7.2747]
[1723822758588,20.0,137.59,137.47,20.0]
[1723822759124,20.0,137.59,137.47,27.2742]
[1723822759624,20.0,137.59,137.48,0.12549]
[1723822759834,20.0,137.59,137.48,45.12549]
[1723822760025,20.0,137.59,137.48,0.12549]
[1723822760191,20.0,137.59,137.47,45.0]
[1723822760392,30.0,137.58,137.47,45.0]
[1723822760891,20.0,137.57,137.47,0.12549]
[1723822761089,20.0,137.57,137.47,0.25098]
[1723822761324,30.0,137.58,137.48,0.12549]
[1723822761488,30.0,137.58,137.49,7.39859]
[1723822761691,30.0,137.58,137.5,45.12549]
[1723822762223,30.0,137.58,137.5,0.12549]
[1723822762894,6.092,137.6,137.5,0.12549]
[1723822764512,6.092,137.6,137.49,45.12549]
[1723822764709,20.0,137.59,137.49,0.12549]
[1723822764912,20.0,137.59,137.44,33.06229016]
[1723822765132,20.0,137.59,137.45,27.2752]
[1723822765343,20.0,137.59,137.45,20.0]
[1723822765541,20.0,137.59,137.46,7.2748]
[1723822765746,20.0,137.59,137.45,20.0]
[1723822765747,20.0,137.59,137.45,27.2752]
[1723822765923,6.092,137.6,137.46,18.1864]
[1723822766119,6.092,137.6,137.49,0.12549]
[1723822766331,6.092,137.6,137.49,65.12549]
[1723822766834,9.22715065,137.6,137.49,45.0]
[1723822767012,9.22715065,137.6,137.47,7.52508]
[1723822767372,6.092,137.6,137.51,0.12549]
[1723822767644,6.092,137.6,137.5,0.12549]
[1723822767851,6.092,137.6,137.51,45.0]
[1723822768054,6.092,137.6,137.49,0.12549]
[1723822768215,6.092,137.6,137.48,38.1834]
[1723822768418,30.0,137.56,137.47,0.12549]
[1723822768611,30.0,137.56,137.45,47.3831]
[1723822768847,30.0,137.56,137.42,285.2814]
[1723822769012,30.0,137.56,137.43,7.276]
[1723822769550,30.0,137.56,137.45,29.1951]
[1723822769718,30.0,137.56,137.48,21.92]
[1723822769909,30.0,137.56,137.49,7.39849]
[1723822770110,6.092,137.6,137.5,45.25098]
[1723822771477,6.092,137.6,137.5,45.12549]
[1723822771635,6.092,137.6,137.5,45.0]
[1723822771962,24.9404,137.59,137.42,27.4814]
[1723822772141,45.0,137.58,137.43,7.2762]
[1723822772361,45.0,137.58,137.4,418.7876]
[1723822772362,7.90937985,137.57,137.4,411.5979]
[1723822772663,54.9404,137.55,137.4,411.5979]
[1723822772861,54.9404,137.55,137.4,404.32]
[1723822773030,20.0,137.54,137.42,7.2769]
[1723822773427,20.0,137.54,137.43,7.2761]
[1723822773626,20.0,137.54,137.41,21.92]
[1723822774052,20.0,137.54,137.43,25.4667]
[1723822774252,54.9404,137.55,137.44,67.29647]
[1723822774443,54.9404,137.55,137.46,29.31979]
[1723822774627,54.9404,137.55,137.48,0.12549]
[1723822774956,54.9404,137.55,137.48,7.39919]
[1723822774957,24.9404,137.55,137.48,7.39919]
[1723822775126,24.9404,137.55,137.49,45.0]
[1723822775326,24.9404,137.55,137.47,45.12549]
[1723822775523,24.9404,137.55,137.46,45.12549]
[1723822775742,24.9404,137.55,137.47,0.25098]
[1723822775948,24.9404,137.55,137.48,0.12549]
[1723822776746,24.9404,137.55,137.47,0.12549]
[1723822776940,24.9404,137.55,137.46,45.0]
[1723822777143,24.9404,137.55,137.45,52.52628]
[1723822777447,24.9404,137.55,137.46,7.40009]
[1723822777646,24.9404,137.55,137.47,52.52528]
[1723822777849,24.9404,137.55,137.48,0.12549]
[1723822778255,24.9404,137.55,137.49,0.12549]
[1723822778438,24.9404,137.55,137.49,45.0]
[1723822778629,24.9404,137.55,137.47,45.0]
[1723822778956,24.9404,137.55,137.46,45.12549]
[1723822779261,24.9404,137.55,137.47,0.12549]
[1723822779555,24.9404,137.55,137.45,25.4627]
[1723822779864,6.092,137.57,137.48,21.92]
[1723822780072,24.2316,137.59,137.51,7.2718]
[1723822780242,6.092,137.61,137.53,21.92]
[1723822780572,6.092,137.61,137.53,7.2709]
[1723822780743,6.092,137.61,137.54,45.37647]
[1723822781057,6.092,137.61,137.54,0.37647]
[1723822781276,24.2316,137.63,137.54,0.37647]
[1723822781277,24.2316,137.63,137.56,0.12549]
[1723822781443,24.2316,137.63,137.56,0.25098]
[1723822781757,24.2316,137.63,137.55,45.12549]
[1723822782146,24.2316,137.63,137.55,45.0]
[1723822783439,24.2316,137.63,137.54,45.12549]
[1723822783643,24.2316,137.63,137.55,0.25098]
[1723822783833,24.2316,137.63,137.56,0.25098]
[1723822784031,6.1127,137.65,137.57,0.25098]
[1723822784757,6.1127,137.65,137.58,0.12549]
[1723822785657,25.2242,137.67,137.58,0.12549]
[1723822786386,25.2242,137.67,137.58,29.43938]
[1723822786583,25.2242,137.67,137.59,45.25098]
[1723822786741,25.2242,137.67,137.6,0.12549]
[1723822787763,6.1127,137.69,137.6,0.12549]
[1723822788977,6.1127,137.69,137.6,7.39279]
[1723822789147,6.1127,137.69,137.62,0.12549]
[1723822789464,6.1127,137.69,137.61,45.12549]
[1723822789673,6.1127,137.69,137.61,45.0]
[1723822789845,6.1127,137.69,137.54,18.1757]
[1723822790165,6.1127,137.69,137.56,27.2694]
[1723822790166,20.0,137.68,137.56,27.2694]
[1723822790571,20.0,137.68,137.57,7.2689]
[1723822790943,23.7068,137.72,137.56,20.0]
[1723822791166,20.0,137.71,137.57,45.50196]
[1723822791367,20.0,137.71,137.6,7.2673]
[1723822791575,20.0,137.71,137.61,45.50196]
[1723822791862,20.0,137.71,137.61,45.37647]
[1723822792264,20.0,137.71,137.61,45.12549]
[1723822792469,20.0,137.71,137.61,45.0]
[1723822792873,20.0,137.71,137.57,382.4]
[1723822794082,45.0,137.7,137.57,382.4]
[1723822794385,20.0,137.69,137.57,382.4]
[1723822795364,6.1127,137.68,137.57,382.4]
[1723822795551,65.0,137.67,137.57,382.4]
[1723822795953,20.0,137.67,137.57,382.4]
[1723822796145,20.0,137.67,137.57,422.4917]
[1723822796352,29.8195,137.72,137.61,9.3367]
[1723822796654,29.8195,137.72,137.62,0.37647]
[1723822796953,29.8195,137.72,137.62,45.25098]
[1723822797271,29.8195,137.72,137.62,45.12549]
[1723822797947,3.23731221,137.73,137.62,45.12549]
[1723822798150,6.1127,137.76,137.64,0.12549]
[1723822798569,6.1127,137.76,137.63,0.12549]
[1723822798763,20.0,137.75,137.63,0.12549]
[1723822799746,6.1127,137.76,137.63,7.76746]
[1723822799946,6.1127,137.76,137.65,0.12549]
[1723822800568,6.1127,137.76,137.64,45.0]
[1723822801279,20.0,137.75,137.64,45.0]
[1723822801587,20.0,137.75,137.64,0.12549]
[1723822801771,20.0,137.75,137.64,0.37647]
[1723822803386,7.57034851,137.78,137.66,7.2639]
[1723822803563,7.57034851,137.78,137.68,0.12549]
[1723822803771,6.1127,137.81,137.68,0.12549]
[1723822803982,6.1127,137.81,137.71,0.12549]
[1723822804285,23.8188,137.83,137.73,9.41819]
[1723822804578,6.9260044,137.85,137.73,9.41819]
[1723822804579,6.9260044,137.85,137.75,0.12549]
[1723822804786,6.9260044,137.85,137.74,45.0]
[1723822805200,6.9260044,137.85,137.71,9.8288]
[1723822805781,6.9260044,137.85,137.71,17.0904]
[1723822806199,6.9260044,137.85,137.72,7.261]
[1723822806403,6.9260044,137.85,137.71,17.0902]
[1723822806697,6.9260044,137.85,137.72,45.12549]
[1723822807071,20.0,137.84,137.72,45.12549]
[1723822808068,20.0,137.84,137.72,52.38609]
[1723822808287,20.0,137.84,137.74,0.12549]
[1723822809795,6.9260044,137.85,137.74,0.12549]
[1723822809976,0.8133044,137.85,137.74,52.38529]
[1723822810176,0.8133044,137.85,137.76,24.55869]
[1723822810385,0.8133044,137.85,137.78,0.12549]
[1723822811686,0.8133044,137.85,137.78,7.38339]
[1723822811875,0.8133044,137.85,137.8,0.12549]
[1723822812792,0.8133044,137.85,137.79,54.8123]
[1723822812986,0.8133044,137.85,137.8,0.12549]
[1723822813292,0.8133044,137.85,137.79,54.8123]
[1723822817485,0.8133044,137.85,137.8,0.12549]
[1723822818302,0.8133044,137.85,137.8,0.50196]
[1723822820082,0.8133044,137.85,137.79,9.8123]
[1723822820486,0.8133044,137.85,137.76,24.4332]
[1723822821181,0.8133044,137.85,137.75,10.0838]
[1723822822999,0.8133044,137.85,137.76,29.1788]
[1723822823179,0.8133044,137.85,137.77,65.37647]
[1723822823380,0.8133044,137.85,137.77,45.37647]
[1723822823582,0.8133044,137.85,137.77,0.37647]
[1723822823804,0.8133044,137.85,137.78,0.12549]
[1723822825100,0.8133044,137.85,137.79,22.9436]
[1723822825400,0.8133044,137.85,137.81,0.12549]
[1723822826290,0.8133044,137.85,137.79,22.9436]
[1723822826678,0.8133044,137.85,137.76,382.4]
[1723822827700,0.8133044,137.85,137.77,0.25098]
[1723822827906,7.56538723,137.94,137.82,21.92]
[1723822828107,154.0799256,138.0,137.83,0.12549]
[1723822828300,161.64598001,138.0,137.85,0.12549]
[1723822828475,161.64598001,138.0,137.85,45.25098]
[1723822829306,161.64598001,138.0,137.85,45.0]
[1723822829685,20.8133044,137.99,137.85,45.0]
[1723822830187,20.8133044,137.99,137.86,0.25098]
[1723822830376,20.8133044,137.99,137.86,9.80218]
[1723822830592,20.8133044,137.99,137.87,45.0]
[1723822831582,1.81211097,137.98,137.82,25.1203]
[1723822831905,24.07147701,137.99,137.82,34.6715]
[1723822832292,45.0,137.98,137.82,56.5915]
[1723822832485,20.0,137.97,137.82,56.5915]
[1723822832687,20.0,137.97,137.82,63.8469]
[1723822832894,20.0,137.97,137.84,21.92]
[1723822833182,0.8133044,137.99,137.87,0.12549]
[1723822833383,0.8133044,137.99,137.87,0.50196]
[1723822833605,0.8133044,137.99,137.87,45.50196]
[1723822834320,20.8133044,137.99,137.87,45.37647]
[1723822834533,20.8133044,137.99,137.87,0.37647]
[1723822836504,0.8133044,137.99,137.9,0.12549]
[1723822836726,0.8133044,137.99,137.91,7.251]
[1723822836881,0.8133044,137.99,137.92,20.50196]
[1723822837214,0.8133044,137.99,137.93,45.0]
[1723822837786,0.8133044,137.99,137.88,33.888]
[1723822838204,0.8133044,137.99,137.88,52.0192]
[1723822838508,0.8133044,137.99,137.89,7.252]
[1723822838903,0.8133044,137.99,137.88,59.2717]
[1723822839118,0.8133044,137.99,137.89,45.0]
[1723822839695,0.8133044,137.99,137.9,0.37647]
[1723822840107,0.8133044,137.99,137.92,0.12549]
[1723822840290,0.8133044,137.99,137.92,45.37647]
[1723822840829,0.8133044,137.99,137.94,21.92]
[1723822841033,0.8133044,137.99,137.98,7.2474]
[1723822841239,0.8133044,137.99,137.98,52.74936]
[1723822841522,0.8133044,137.99,137.98,45.50196]
[1723822841828,0.8133044,137.99,137.98,45.37647]
[1723822841996,0.8133044,137.99,137.98,0.37647]
[1723822842316,0.8133044,137.99,137.98,0.12549]
[1723822842493,0.8133044,137.99,137.97,45.0]
[1723822843314,0.8133044,137.99,137.97,0.12549]
[1723822843689,0.8133044,137.99,137.97,0.50196]
[1723822843916,0.8133044,137.99,137.98,7.2474]
[1723822844130,0.8133044,137.99,137.98,52.74936]
[1723822844596,147.9674256,138.0,137.98,45.50196]
[1723822844952,122.6089256,138.0,137.99,86.64746]
[1723822845229,87.1209256,138.0,137.99,128.56746]
[1723822845440,28.6214256,138.0,137.99,104.03656]
[1723822845928,4.0762256,138.0,137.99,104.03656]
[1723822846126,4.0762256,138.0,137.99,54.86966]
[1723822846342,4.0762256,138.0,137.99,9.49319]
[1723822847424,4.0762256,138.0,137.97,7.2479]
[1723822847834,4.0762256,138.0,137.95,9.5174]
[1723822848137,4.0762256,138.0,137.99,7.2469]
[1723822848350,4.0762256,138.0,137.98,25.3649]
[1723822848748,4.0762256,138.0,137.99,45.25098]
[1723822849848,4.0762256,138.0,137.95,27.6392]
[1723822850017,4.0762256,138.0,137.95,9.5174]
[1723822850212,4.0762256,138.0,137.99,29.1669]
[1723822850515,4.0762256,138.0,137.99,73.4669]
[1723822851241,4.0762256,138.0,137.99,138.84337]
[1723822851447,4.0762256,138.0,137.99,138.96886]
[1723822851737,4.0762256,138.0,137.99,94.66886]
[1723822852150,4.0762256,138.0,137.99,72.74886]
[1723822852327,4.0762256,138.0,137.99,27.74886]
[1723822852525,4.0762256,138.0,137.99,27.37239]
[1723822852726,4.0762256,138.0,137.97,18.1198]
[1723822852931,4.0762256,138.0,137.97,25.3677]
[1723822853612,4.0762256,138.0,137.97,18.1198]
[1723822853813,4.0762256,138.0,137.95,9.5174]
[1723822854727,4.0762256,138.0,137.93,25.3746]
[1723822855043,4.0762256,138.0,137.92,9.5812]
[1723822855437,4.0762256,138.0,137.92,16.8317]
[1723822855816,4.0762256,138.0,137.92,34.9575]
[1723822856331,4.0762256,138.0,137.93,0.12549]
[1723822856531,4.0762256,138.0,137.93,7.50078]
[1723822857415,10.0638,137.99,137.89,18.1297]
[1723822857643,23.9383,137.98,137.89,25.3818]
[1723822857851,23.9383,137.98,137.9,7.2515]
[1723822858155,23.9383,137.98,137.91,7.2509]
[1723822858335,23.9383,137.98,137.9,7.2514]
[1723822858759,23.9383,137.98,137.87,7.253]
[1723822859242,23.9383,137.98,137.86,25.3873]
[1723822859450,23.9383,137.98,137.84,399.2355]
[1723822859630,20.0,137.97,137.84,399.2355]
[1723822860045,20.0,137.97,137.86,7.2536]
[1723822860427,20.0,137.97,137.85,18.135]
[1723822860645,20.0,137.97,137.87,7.253]
[1723822860828,23.9383,137.98,137.87,7.253]
[1723822861024,23.9383,137.98,137.89,7.2519]
[1723822861228,23.9383,137.98,137.9,0.12549]
[1723822861735,23.9383,137.98,137.9,67.04549]
[1723822861937,23.9383,137.98,137.91,18.50367]
[1723822862143,23.9383,137.98,137.92,45.0]
[1723822862453,4.0762256,138.0,137.93,0.12549]
[1723822862640,4.0762256,138.0,137.95,0.12549]
[1723822862841,4.0762256,138.0,137.95,7.37409]
[1723822863146,4.0762256,138.0,137.96,0.12549]
[1723822863336,4.0762256,138.0,137.97,0.12549]
[1723822863539,4.0762256,138.0,137.97,0.25098]
[1723822863851,4.0762256,138.0,137.98,0.25098]
[1723822864351,4.0762256,138.0,137.98,45.0]
[1723822864652,4.0762256,138.0,137.93,20.0]
[1723822865426,13.3075256,138.0,137.91,25.378]
[1723822865747,13.3075256,138.0,137.86,44.3]
[1723822865748,22.8075,137.99,137.88,18.1308]
[1723822866455,22.8075,137.99,137.88,40.0508]
[1723822867028,22.8075,137.99,137.89,27.252]
[1723822867229,22.8075,137.99,137.88,18.1308]
[1723822867424,30.0,137.98,137.92,21.92]
[1723822867629,4.0762256,138.0,137.95,7.2488]
[1723822867851,4.0762256,138.0,137.96,18.1207]
[1723822868237,4.0762256,138.0,137.95,7.2489]
[1723822868446,4.0762256,138.0,137.96,0.12549]
[1723822868657,4.0762256,138.0,137.97,0.12549]
[1723822868847,4.0762256,138.0,137.97,0.37647]
[1723822870055,4.0762256,138.0,137.97,0.12549]
[1723822870261,4.0762256,138.0,137.96,45.0]
[1723822870462,4.0762256,138.0,137.95,45.12549]
[1723822870758,4.0762256,138.0,137.96,0.25098]
[1723822870964,4.0762256,138.0,137.96,0.12549]
[1723822871144,4.0762256,138.0,137.97,0.12549]
[1723822871539,4.0762256,138.0,137.96,0.12549]
[1723822872156,4.0762256,138.0,137.94,0.25098]
[1723822872349,4.0762256,138.0,137.94,7.2494]
[1723822872540,4.0762256,138.0,137.95,0.37647]
[1723822872741,4.0762256,138.0,137.96,25.49449]
[1723822872965,4.0762256,138.0,137.97,0.37647]
[1723822873753,4.0762256,138.0,137.97,45.37647]
[1723822874138,4.0762256,138.0,137.99,7.37239]
[1723822874354,4.0762256,138.0,137.99,72.62337]
[1723822874637,4.0762256,138.0,137.99,72.74886]
[1723822875742,4.0762256,138.0,137.99,65.37647]
[1723822875949,4.0762256,138.0,137.99,65.50196]
[1723822876159,4.0762256,138.0,137.99,72.74886]
[1723822876953,2.60622562,138.0,137.99,104.93996]
[1723822881088,2.60622562,138.0,137.99,83.01996]
[1723822881453,2.60622562,138.0,137.99,104.78996]
[1723822881851,2.60622562,138.0,137.99,83.01996]
[1723822882090,2.60622562,138.0,137.99,38.01996]
[1723822882266,2.60622562,138.0,137.99,59.78996]
[1723822882498,2.60622562,138.0,137.99,38.01996]
[1723822883363,2.60622562,138.0,137.99,104.78996]
[1723822883875,2.60622562,138.0,137.99,49.39337]
[1723822884077,2.60622562,138.0,137.99,27.62337]
[1723822884655,2.60622562,138.0,137.97,18.1187]
[1723822884862,2.60622562,138.0,137.94,25.3718]
[1723822885160,24.2879,137.99,137.94,25.3721]
[1723822885765,24.2879,137.99,137.95,7.249]
[1723822885965,24.2879,137.99,137.94,25.372]
[1723822886658,24.2879,137.99,137.94,18.1227]
[1723822886859,24.2879,137.99,137.91,18.1274]
[1723822887059,24.2879,137.99,137.91,25.3784]
[1723822887291,24.2879,137.99,137.91,18.1274]
[1723822887778,24.2879,137.99,137.89,7.252]
[1723822887982,24.2879,137.99,137.88,25.3839]
[1723822888192,24.2879,137.99,137.86,389.6535]
[1723822888355,26.5013,137.97,137.86,389.6535]
[1723822888561,9.7912,137.96,137.86,382.4]
[1723822888878,9.7912,137.96,137.82,410.4997]
[1723822889066,46.5013,137.95,137.83,7.2553]
[1723822889265,46.5013,137.95,137.84,7.2546]
[1723822889466,46.5013,137.95,137.83,7.2552]
[1723822890163,46.5013,137.95,137.84,27.2547]
[1723822890370,46.5013,137.95,137.85,7.2542]
[1723822891061,46.5013,137.95,137.86,45.50196]
[1723822891475,46.5013,137.95,137.86,45.37647]
[1723822891777,26.5013,137.95,137.87,0.25098]
[1723822891986,26.5013,137.95,137.88,0.37647]
[1723822892196,26.5013,137.95,137.88,45.37647]
[1723822893989,26.5013,137.95,137.88,45.25098]
[1723822894606,26.5013,137.95,137.88,45.0]
[1723822894907,26.5013,137.95,137.87,45.12549]
[1723822895498,26.5013,137.95,137.83,400.5379]
[1723822895813,26.3197,137.93,137.83,18.1379]
[1723822896025,26.3197,137.93,137.81,7.2563]
[1723822896300,20.0,137.92,137.82,18.139]
[1723822896507,20.0,137.92,137.83,7.2552]
[1723822897686,36.2761,137.91,137.8,193.2951521]
[1723822897890,20.0,137.9,137.8,200.5518521]
[1723822898408,25.777,137.89,137.8,185.711225]
[1723822898706,20.0,137.88,137.8,185.711225]
[1723822898898,25.777,137.87,137.8,185.711225]
[1723822899102,20.0,137.86,137.8,185.711225]
[1723822899475,10.4991,137.85,137.8,185.711225]
[1723822901689,10.4991,137.85,137.81,45.0]
[1723822904807,10.4991,137.85,137.8,185.711225]
[1723822906397,10.4991,137.85,137.81,45.0]
[1723822907104,25.777,137.87,137.82,0.12549]
[1723822907306,25.777,137.87,137.84,18.1364]
[1723822907529,25.777,137.87,137.85,45.0]
[1723822909502,25.777,137.87,137.81,18.1406]
[1723822909714,25.777,137.87,137.8,185.711225]
[1723822909925,10.681,137.86,137.8,185.711225]
[1723822912316,10.681,137.86,137.81,45.0]
[1723822913909,10.681,137.86,137.8,185.711225]
[1723822914108,20.0,137.85,137.8,185.711225]
[1723822915304,10.681,137.86,137.8,185.711225]
[1723822915729,10.681,137.86,137.81,45.0]
[1723822916402,10.46361,137.86,137.81,45.0]
[1723822917729,25.777,137.87,137.82,0.25098]
[1723822918024,25.777,137.87,137.82,25.64578]
[1723822918240,25.777,137.87,137.83,45.0]
[1723822918614,5.64057474,137.87,137.83,45.0]
[1723822919404,15.53547474,137.87,137.83,45.0]
[1723822919629,15.53547474,137.87,137.8,185.711225]
[1723822920009,21.81359173,137.86,137.8,185.711225]
[1723822920317,20.0,137.86,137.8,185.711225]
[1723822921732,20.0,137.86,137.81,45.0]
[1723822922413,15.53547474,137.87,137.81,45.0]
[1723822926409,5.64057474,137.87,137.81,45.0]
[1723822926810,5.64057474,137.87,137.81,52.2561]
[1723822927010,5.64057474,137.87,137.81,45.0]
[1723822929533,5.64057474,137.87,137.8,185.711225]
[1723822930437,20.0,137.86,137.8,185.711225]
[1723822933525,30.0,137.84,137.8,185.711225]
[1723822939014,20.0,137.86,137.8,185.711225]
[1723822939739,1.81380279,137.85,137.8,185.711225]
[1723822940058,20.0,137.86,137.8,185.711225]
[1723822944821,5.64057474,137.87,137.81,45.0]
[1723822946141,5.64057474,137.87,137.8,185.711225]
[1723822946715,5.64057474,137.87,137.81,45.0]
[1723822947231,20.0,137.86,137.8,185.711225]
[1723822949333,20.0,137.86,137.81,45.0]
[1723822950642,20.0,137.86,137.8,185.711225]
[1723822951127,5.64057474,137.87,137.8,185.711225]
[1723822951331,20.0,137.86,137.8,185.711225]
[1723822953152,5.64057474,137.87,137.8,185.711225]
[1723822953354,5.64057474,137.87,137.81,45.0]
[1723822953559,5.64057474,137.87,137.81,52.256]
[1723822953863,5.64057474,137.87,137.82,0.25098]
[1723822954329,35.4462,137.94,137.82,7.50678]
[1723822954530,35.4462,137.94,137.83,45.0]
[1723822955138,38.6087081,137.94,137.83,45.0]
[1723822955343,38.6087081,137.94,137.83,52.2549]
[1723822955556,38.6087081,137.94,137.83,45.0]
[1723822955759,1.81270685,137.93,137.83,45.0]
[1723822955961,38.6087081,137.94,137.83,45.0]
[1723822956276,38.6087081,137.94,137.82,10.181]
[1723822956660,20.0,137.93,137.82,10.181]
[1723822956883,65.0,137.93,137.82,10.181]
[1723822957762,65.0,137.93,137.83,45.0]
[1723822958480,66.81307597,137.93,137.83,45.0]
[1723822958764,26.38657597,137.92,137.8,185.711225]
[1723822958969,34.5246,137.9,137.8,185.711225]
[1723822959140,21.81373858,137.89,137.8,185.711225]
[1723822959490,24.3744,137.88,137.8,185.711225]
[1723822959772,21.81375438,137.87,137.8,185.711225]
[1723822959932,20.0,137.87,137.8,185.711225]
[1723822960752,30.0,137.83,137.8,185.711225]
[1723822960970,20.0,137.82,137.8,185.711225]
[1723822962486,26.1252,137.81,137.8,185.711225]
[1723822963448,56.1252,137.81,137.8,185.711225]
[1723822964352,76.1252,137.81,137.8,185.711225]
[1723822965141,25.6251,137.85,137.8,185.711225]
[1723822966343,25.9401,137.89,137.81,45.0]
[1723822969253,20.0,137.88,137.81,45.0]
[1723822970956,25.5801,137.93,137.84,7.2543]
[1723822971158,25.5801,137.93,137.85,55.55488]
[1723822971351,25.5801,137.93,137.85,62.80898]
[1723822971773,25.5801,137.93,137.85,55.55488]
[1723822972580,25.5801,137.93,137.85,55.42939]
[1723822972777,20.0,137.92,137.85,55.3039]
[1723822972974,25.8502,137.99,137.86,25.53849]
[1723822973178,25.8502,137.99,137.87,45.0]
[1723822973485,29.06764545,137.99,137.87,45.0]
[1723822974301,20.0,137.98,137.87,45.0]
[1723822979989,1.81237471,137.97,137.85,10.3039]